bitfinex/quotes_ETHUSD_20250903
["timestamp","ask_amount","ask_price","bid_price","bid_amount"]
[1756864205624,0.021,4292.8,4292.7,6.35133618]
[1756864206050,0.021,4292.8,4292.7,13.66821915]
[1756864206461,0.021,4292.8,4292.7,16.66821915]
[1756864207155,0.021,4292.8,4292.7,17.46021915]
[1756864208532,0.021,4292.8,4292.7,28.56021915]
[1756864209939,0.001,4293.2,4293.0,0.792]
[1756864210144,0.001,4293.2,4293.1,16.11180211]
[1756864210367,0.001,4293.2,4293.1,17.46000211]
[1756864210549,0.001,4293.2,4293.1,28.56000211]
[1756864211153,0.001,4293.2,4293.1,24.65500211]
[1756864211356,0.001,4293.2,4293.1,28.6533228]
[1756864217872,1e-08,4293.2,4293.1,28.6533228]
[1756864219060,0.001,4293.6,4293.5,3.12110213]
[1756864219259,0.001,4293.7,4293.6,6.12104788]
[1756864219449,0.001,4294.6,4294.5,2.32855978]
[1756864219648,0.001,4294.6,4294.5,23.11621576]
[1756864219886,0.001,4294.6,4294.5,24.34761576]
[1756864220478,0.1,4294.6,4294.5,22.32421576]
[1756864220790,0.001,4294.6,4294.5,22.18466]
[1756864221151,0.001,4294.6,4294.5,11.08466]
[1756864222450,0.001,4294.6,4294.5,11.81986]
[1756864223263,0.001,4294.6,4294.5,11.38076]
[1756864224556,0.001,4294.6,4294.5,13.10806]
[1756864225296,0.001,4294.6,4294.5,24.20806]
[1756864225846,0.001,4294.6,4294.5,23.27276]
[1756864227063,0.001,4294.6,4294.5,23.71186]
[1756864227581,0.001,4294.6,4294.5,24.20806]
[1756864231412,0.001,4294.6,4294.5,31.63474223]
[1756864232131,1e-08,4295.5,4295.4,3.12007189]
[1756864232266,1e-08,4295.5,4295.4,24.24403483]
[1756864232467,0.02,4295.8,4295.7,3.1199093]
[1756864232468,1e-08,4295.8,4295.7,3.1199093]
[1756864232674,1e-08,4295.8,4295.7,28.57387062]
[1756864232970,1e-08,4295.8,4295.7,29.75779153]
[1756864234426,0.373,4297.8,4296.3,3.792]
[1756864234592,0.373,4297.8,4296.3,6.14286004]
[1756864234794,0.373,4297.8,4296.7,3.11936751]
[1756864234976,0.373,4297.8,4296.7,18.0873232]
[1756864235308,0.021,4297.8,4296.7,19.27124953]
[1756864235508,1e-08,4296.8,4296.7,19.27124953]
[1756864236283,1e-08,4296.8,4296.7,19.44290112]
[1756864241917,1e-08,4296.8,4296.7,26.86958335]
[1756864242812,1e-08,4296.8,4296.7,26.98558335]
[1756864243498,1e-08,4296.8,4296.7,33.75158335]
[1756864245805,1e-08,4296.8,4296.7,34.10358335]
[1756864246240,1e-08,4296.8,4296.7,38.00458335]
[1756864247143,1e-08,4296.8,4296.7,42.24458335]
[1756864248417,0.001,4298.3,4298.2,3.1185553]
[1756864248617,0.001,4298.3,4298.2,11.6595553]
[1756864248816,0.1,4298.3,4298.2,11.6595553]
[1756864249044,0.1,4298.3,4298.2,23.5107553]
[1756864249613,0.1,4298.3,4298.2,19.6097553]
[1756864249908,0.1,4298.3,4298.2,23.5107553]
[1756864250140,0.1,4298.3,4298.2,24.35543732]
[1756864252042,0.001,4298.3,4298.2,24.35543732]
[1756864252857,0.1,4298.3,4298.2,24.35543732]
[1756864253055,0.001,4298.3,4298.2,24.64703732]
[1756864253852,1e-08,4298.3,4298.2,32.98931955]
[1756864254246,0.001,4299.2,4299.1,0.792]
[1756864254418,0.001,4299.2,4299.1,11.65806824]
[1756864254618,0.1,4299.2,4299.1,11.65806824]
[1756864254918,0.1,4299.2,4299.1,23.4569755]
[1756864255258,0.4495,4299.2,4299.1,23.5729755]
[1756864255640,0.4495,4299.2,4299.1,22.87406824]
[1756864256033,0.4495,4299.2,4299.1,23.32356824]
[1756864256227,0.1,4299.2,4299.1,23.32356824]
[1756864256450,0.4495,4299.2,4299.1,23.32356824]
[1756864256835,0.1,4299.2,4299.1,23.32356824]
[1756864257963,0.1,4299.2,4299.1,23.50158593]
[1756864260757,0.1,4299.2,4299.1,19.60158593]
[1756864261069,0.1,4299.2,4299.1,23.50158593]
[1756864261267,0.1,4299.2,4299.1,24.38035117]
[1756864261268,0.001,4299.2,4299.1,24.38035117]
[1756864261434,0.001,4299.2,4299.1,32.7620334]
[1756864262336,0.1,4299.2,4299.1,24.08875117]
[1756864262586,0.001,4299.2,4299.1,25.33535117]
[1756864262768,0.001,4299.2,4299.1,20.18875117]
[1756864262769,0.1,4299.2,4299.1,20.18875117]
[1756864262936,0.1,4299.2,4299.1,24.08875117]
[1756864263266,0.3632,4299.2,4299.1,22.08106824]
[1756864263580,0.1,4299.2,4299.1,22.08106824]
[1756864264159,0.1,4299.2,4299.1,10.98106824]
[1756864265769,0.1,4299.2,4299.1,11.77306824]
[1756864265972,0.001,4299.2,4299.1,11.77306824]
[1756864266294,0.001,4299.2,4299.1,12.55736824]
[1756864266466,0.001,4299.2,4299.1,13.01966824]
[1756864266993,0.001,4299.2,4299.1,12.06466824]
[1756864267488,0.001,4299.2,4299.1,20.44635047]
[1756864267995,0.001,4299.2,4299.1,31.54635047]
[1756864269959,0.001,4299.2,4299.1,27.64735047]
[1756864270160,0.001,4299.2,4299.1,24.12166824]
[1756864270904,0.001,4299.2,4299.1,31.54835047]
[1756864271825,0.001,4299.2,4299.1,32.24719586]
[1756864273168,0.001,4299.7,4299.6,0.792]
[1756864273374,0.001,4299.7,4299.6,10.01679774]
[1756864273605,0.001,4299.7,4299.6,10.13279774]
[1756864273803,0.001,4299.7,4299.6,21.93162034]
[1756864274589,0.001,4299.7,4299.6,22.22322034]
[1756864274787,0.041,4299.8,4299.7,6.11774365]
[1756864274987,0.041,4299.8,4299.7,7.07274365]
[1756864275318,0.041,4299.8,4299.7,7.36434365]
[1756864275678,1e-08,4300.1,4299.7,5.0386]
[1756864275976,0.02,4302.8,4299.7,5.0386]
[1756864275977,0.372,4301.8,4300.6,6.11725694]
[1756864276205,0.372,4301.8,4300.6,30.18593917]
[1756864276411,1e-08,4300.7,4300.6,31.54853917]
[1756864276613,0.372,4301.8,4300.6,31.54853917]
[1756864276614,1e-08,4300.8,4300.7,6.11720287]
[1756864276782,1e-08,4300.8,4300.7,7.07220287]
[1756864276982,1e-08,4300.8,4300.7,7.36380287]
[1756864277403,1e-08,4300.8,4300.7,7.50380287]
[1756864277709,0.29770001,4300.8,4300.7,10.16020287]
[1756864277907,1e-08,4300.8,4300.7,10.16020287]
[1756864278205,1e-08,4300.8,4300.7,10.45180287]
[1756864278410,1e-08,4300.8,4300.7,11.40680287]
[1756864279603,1e-08,4300.8,4300.7,10.16120287]
[1756864279794,1e-08,4300.8,4300.7,21.26120287]
[1756864280195,1e-08,4300.8,4300.7,21.55280287]
[1756864280912,1e-08,4300.8,4300.7,18.60380287]
[1756864281116,1e-08,4300.8,4300.7,21.26020287]
[1756864281117,0.09900001,4300.8,4300.7,21.26020287]
[1756864281831,0.09900001,4300.8,4300.7,21.26120287]
[1756864282400,0.09900001,4300.8,4300.7,21.12120287]
[1756864282598,1e-08,4300.8,4300.7,21.12120287]
[1756864282805,1e-08,4300.8,4300.7,21.41280287]
[1756864283003,1e-08,4300.8,4300.7,22.48380287]
[1756864286026,0.02,4301.8,4301.6,3.792]
[1756864286241,0.02,4302.8,4302.7,3.11612206]
[1756864286439,0.02,4302.8,4302.7,11.65712206]
[1756864286594,0.4685,4302.8,4302.7,23.02032206]
[1756864287140,0.119,4302.8,4302.7,23.02032206]
[1756864288230,0.02,4302.8,4302.7,23.31192206]
[1756864288619,0.02,4302.8,4302.7,23.02032206]
[1756864288807,0.119,4302.8,4302.7,19.11732206]
[1756864289132,0.119,4302.8,4302.7,23.03832206]
[1756864291226,0.02,4302.8,4302.7,23.78992206]
[1756864291402,0.02,4302.8,4302.7,24.23812206]
[1756864292808,0.04,4303.8,4303.7,2.32358203]
[1756864293031,0.04,4303.8,4303.7,10.87958203]
[1756864293235,0.139,4303.8,4303.7,10.87958203]
[1756864293403,0.139,4303.8,4303.7,11.67158203]
[1756864294809,0.139,4303.8,4303.7,7.75358203]
[1756864295128,0.04,4303.8,4303.7,11.67158203]
[1756864295434,0.04,4303.8,4303.7,11.97078203]
[1756864295640,0.04,4303.8,4303.7,11.67158203]
[1756864295843,0.04,4303.8,4303.7,11.97078203]
[1756864296031,0.04,4303.8,4303.7,12.87138203]
[1756864296348,0.04,4303.8,4303.7,12.98738203]
[1756864296711,0.04,4303.8,4303.7,12.08678203]
[1756864297038,0.139,4303.8,4303.7,11.78558203]
[1756864298257,0.139,4303.8,4303.7,12.13508203]
[1756864300721,0.139,4303.8,4303.7,8.21908203]
[1756864300924,0.7517,4303.8,4303.7,5.668]
[1756864302241,3.07522804,4303.8,4303.7,1.754]
[1756864302421,3.07522804,4303.8,4303.0,1.638]
[1756864302422,2.32358203,4303.7,4303.0,1.638]
[1756864302620,2.32373975,4303.5,4303.2,0.116]
[1756864302825,0.9202228,4303.7,4303.3,3.055]
[1756864303010,0.3094,4303.4,4303.3,3.055]
[1756864303213,0.7138,4303.4,4303.3,3.055]
[1756864304755,0.7138,4303.4,4303.2,0.116]
[1756864304923,0.3094,4303.4,4303.3,3.915]
[1756864305523,0.7138,4303.4,4303.3,3.915]
[1756864306154,0.4506,4303.4,4303.3,3.915]
[1756864307256,0.3094,4303.4,4303.3,3.915]
[1756864307764,0.4506,4303.4,4303.3,3.915]
[1756864309059,0.3094,4303.4,4303.3,3.915]
[1756864309452,6.36778018,4303.4,4303.3,3.915]
[1756864309825,0.3094,4303.4,4303.3,3.915]
[1756864310027,0.041,4303.8,4303.4,3.0]
[1756864310233,0.041,4303.8,4303.7,2.32358203]
[1756864310431,0.041,4303.8,4303.7,6.65078203]
[1756864310961,0.041,4303.8,4303.7,7.55138203]
[1756864311162,0.041,4303.8,4303.7,11.34338203]
[1756864311367,0.041,4303.8,4303.7,12.90654848]
[1756864311567,0.041,4303.8,4303.7,12.79054848]
[1756864311729,0.041,4303.8,4303.7,12.90654848]
[1756864312269,0.041,4303.8,4303.7,24.00654848]
[1756864314452,0.041,4303.8,4303.7,22.31394848]
[1756864314640,0.041,4303.8,4303.7,22.76214848]
[1756864314842,0.041,4303.8,4303.7,23.21454848]
[1756864315563,0.041,4303.8,4303.7,24.00654848]
[1756864317349,0.041,4303.8,4303.7,23.55934848]
[1756864317551,0.041,4303.8,4303.7,19.19394848]
[1756864317754,0.041,4303.8,4303.7,23.10694848]
[1756864318073,0.041,4303.8,4303.7,23.55514848]
[1756864318260,0.041,4303.8,4303.7,24.00754848]
[1756864318463,0.041,4303.8,4303.7,23.55514848]
[1756864318769,0.041,4303.8,4303.7,22.69020122]
[1756864318989,0.041,4303.8,4303.7,22.24200122]
[1756864319394,0.041,4303.8,4303.7,23.13770122]
[1756864319590,0.041,4303.8,4303.7,22.24200122]
[1756864319796,0.041,4303.8,4303.7,22.69300122]
[1756864319998,0.041,4303.8,4303.7,23.13770122]
[1756864321686,0.041,4303.8,4303.7,22.69300122]
[1756864321886,0.041,4303.8,4303.7,22.24200122]
[1756864322484,0.041,4303.8,4303.7,23.13770122]
[1756864323198,0.14,4303.8,4303.7,18.02980122]
[1756864323392,0.14,4303.8,4303.7,10.84080122]
[1756864323607,0.14,4303.8,4303.7,6.92980122]
[1756864323608,0.041,4303.8,4303.7,6.92980122]
[1756864323809,0.041,4303.8,4303.7,11.15420122]
[1756864323962,1e-08,4303.8,4303.7,8.01990122]
[1756864324169,1e-08,4303.8,4303.7,12.05990122]
[1756864324400,1e-08,4303.8,4303.7,23.37679487]
[1756864325485,1e-08,4303.8,4303.7,23.37579487]
[1756864325689,1e-08,4303.8,4303.7,19.45279487]
[1756864325894,1e-08,4303.8,4303.7,23.37579487]
[1756864326904,0.09900001,4303.8,4303.7,18.37869487]
[1756864327067,0.09900001,4303.8,4303.7,21.37869487]
[1756864327371,1e-08,4303.8,4303.7,22.17069487]
[1756864328512,0.10150001,4303.8,4303.7,22.17569487]
[1756864329478,1e-08,4303.8,4303.7,22.17569487]
[1756864330008,1e-08,4303.8,4303.7,11.07569487]
[1756864330301,0.10400001,4303.8,4303.7,11.07569487]
[1756864330501,0.10400001,4303.8,4303.7,22.17569487]
[1756864331603,0.10400001,4303.8,4303.7,18.24669487]
[1756864331789,0.10400001,4303.8,4303.7,22.17369487]
[1756864331970,0.10400001,4303.8,4303.7,11.07369487]
[1756864332172,1e-08,4303.8,4303.7,11.07369487]
[1756864334904,1e-08,4303.8,4303.7,11.38409487]
[1756864335491,1e-08,4303.8,4303.7,11.07369487]
[1756864335883,1e-08,4303.8,4303.7,22.17369487]
[1756864336093,1e-08,4303.8,4303.7,22.17389961]
[1756864336690,1e-08,4303.8,4303.7,22.48429961]
[1756864338011,1e-08,4303.8,4303.7,23.37999961]
[1756864339295,0.001,4304.3,4304.2,3.11531211]
[1756864339518,0.001,4304.3,4304.2,11.9004105]
[1756864339723,0.001,4304.3,4304.2,7.9694105]
[1756864339898,0.1,4304.3,4304.2,19.1854105]
[1756864340100,0.1,4304.3,4304.2,8.0854105]
[1756864340315,0.4495,4304.3,4304.2,12.0164105]
[1756864340625,0.4495,4304.3,4304.2,11.2244105]
[1756864341119,0.1,4304.3,4304.2,11.2244105]
[1756864341486,0.001,4304.3,4304.2,11.2244105]
[1756864341893,0.001,4304.3,4304.2,11.5348105]
[1756864342121,0.001,4304.3,4304.2,11.9795105]
[1756864342304,0.001,4304.3,4304.2,12.52360076]
[1756864342901,0.001,4304.3,4304.2,12.52401606]
[1756864343235,0.001,4304.3,4304.2,13.31601606]
[1756864346437,0.001,4304.3,4304.2,13.3159187]
[1756864346748,0.001,4304.3,4304.2,19.5892187]
[1756864346949,0.1,4304.3,4304.2,18.4868187]
[1756864347149,0.7127,4304.3,4304.2,2.06350659]
[1756864347318,0.7127,4304.3,4304.2,5.90141633]
[1756864347824,0.1,4304.3,4304.2,5.90141633]
[1756864348144,0.1,4304.3,4304.2,8.22472844]
[1756864348344,0.1,4304.3,4304.2,5.90141633]
[1756864352660,0.4495,4304.3,4304.2,5.90141633]
[1756864353328,0.4495,4304.3,4304.2,1.97046447]
[1756864353515,0.4495,4304.3,4304.2,5.89846447]
[1756864353720,0.64046097,4304.3,4304.2,5.78146447]
[1756864353939,0.98996097,4304.3,4304.2,5.78146447]
[1756864354349,0.4495,4304.3,4304.2,5.78146447]
[1756864354538,0.1,4304.3,4304.2,8.10477658]
[1756864354733,0.1,4304.3,4304.2,5.89746447]
[1756864357346,0.1,4304.3,4304.2,5.78146447]
[1756864357347,0.7127,4304.3,4304.2,5.78146447]
[1756864357513,0.4495,4304.3,4304.2,5.78146447]
[1756864357931,0.1,4304.3,4304.2,5.78146447]
[1756864359349,0.001,4304.3,4304.2,5.78146447]
[1756864359549,0.001,4304.3,4304.2,13.71982303]
[1756864359747,0.001,4304.3,4304.2,13.95182303]
[1756864359950,0.001,4304.3,4304.2,25.05182303]
[1756864363634,0.001,4304.3,4304.2,25.05183735]
[1756864365253,1e-08,4304.3,4304.2,25.05183735]
[1756864366059,0.02,4304.9,4304.8,2.32298829]
[1756864366258,0.02,4304.9,4304.8,9.58346708]
[1756864366422,0.02,4304.9,4304.8,10.81676708]
[1756864366626,0.02,4304.9,4304.8,21.91676708]
[1756864368566,0.02,4304.9,4304.8,22.70876708]
[1756864368734,0.02,4304.9,4304.8,23.29851353]
[1756864370468,0.02,4304.9,4304.8,18.91391353]
[1756864370628,0.02,4304.9,4304.8,22.83791353]
[1756864370960,0.02,4304.9,4304.8,23.29551353]
[1756864371468,0.3256,4304.9,4304.8,18.13821353]
[1756864371761,0.02,4304.9,4304.8,22.06221353]
[1756864372054,0.3239,4304.9,4304.8,22.06221353]
[1756864372431,0.02,4304.9,4304.8,22.35971353]
[1756864372866,0.02,4304.9,4304.8,22.06221353]
[1756864373542,0.3256,4304.9,4304.8,22.06221353]
[1756864374229,0.02,4304.9,4304.8,22.06221353]
[1756864374424,0.3239,4304.9,4304.8,17.56846708]
[1756864374757,0.3239,4304.9,4304.8,9.59846708]
[1756864375477,0.02,4304.9,4304.8,9.89596708]
[1756864375972,0.02,4304.9,4304.8,10.86866708]
[1756864376172,0.3224,4304.9,4304.8,10.39046708]
[1756864376827,0.3224,4304.9,4304.8,6.46846708]
[1756864377143,0.3224,4304.9,4304.8,10.39046708]
[1756864377325,0.3224,4304.9,4304.8,10.38977433]
[1756864377728,0.3256,4304.9,4304.8,10.38977433]
[1756864378158,0.02,4304.9,4304.8,10.38977433]
[1756864378358,0.02,4304.9,4304.8,11.16547433]
[1756864378557,0.02,4304.9,4304.8,11.62307433]
[1756864378778,0.02,4304.9,4304.8,10.38977433]
[1756864378944,0.119,4304.9,4304.8,10.38977433]
[1756864379894,0.02,4304.9,4304.8,10.38977433]
[1756864380253,0.02,4304.9,4304.8,10.70317433]
[1756864380652,0.02,4304.9,4304.8,10.38677433]
[1756864381480,0.4685,4304.9,4304.8,3.35278604]
[1756864381648,0.4685,4304.9,4304.8,9.59477433]
[1756864381649,0.12,4304.9,4304.8,9.59477433]
[1756864382248,0.021,4304.9,4304.8,9.59477433]
[1756864382657,0.12,4304.9,4304.8,9.59477433]
[1756864383446,0.021,4304.9,4304.8,12.3596673]
[1756864383651,0.021,4304.9,4304.8,20.2363727]
[1756864384280,0.021,4304.9,4304.8,31.2203727]
[1756864384585,0.021,4304.9,4304.8,31.3363727]
[1756864384964,0.021,4304.9,4304.8,23.9453673]
[1756864385684,0.021,4304.9,4304.8,20.0263673]
[1756864385867,0.021,4304.9,4304.8,16.77577433]
[1756864385868,0.12,4304.9,4304.8,16.77577433]
[1756864386057,0.12,4304.9,4304.8,9.59577433]
[1756864386256,0.12,4304.9,4304.8,6.59577433]
[1756864386686,0.12,4304.9,4304.8,7.38777433]
[1756864387391,0.021,4304.9,4304.8,8.68156594]
[1756864387597,0.021,4304.9,4304.8,12.62566594]
[1756864387957,0.021,4304.9,4304.8,11.68156594]
[1756864388181,0.021,4304.9,4304.8,12.62566594]
[1756864388392,0.021,4304.9,4304.8,20.01667134]
[1756864388776,0.021,4304.9,4304.8,12.62566594]
[1756864390905,0.021,4304.9,4304.8,11.37726594]
[1756864391189,0.021,4304.9,4304.8,12.16926594]
[1756864391394,0.021,4304.9,4304.8,12.62766594]
[1756864393184,0.3276,4304.9,4304.8,11.37716594]
[1756864393380,0.3276,4304.9,4304.8,10.39733509]
[1756864393787,0.021,4304.9,4304.8,10.39733509]
[1756864394210,0.021,4304.9,4304.8,10.71073509]
[1756864394818,0.021,4304.9,4304.8,11.65483509]
[1756864398336,0.02,4305.8,4305.7,3.11450272]
[1756864398628,0.02,4305.8,4305.7,8.89484952]
[1756864398826,0.02,4305.8,4305.7,10.13259292]
[1756864399035,0.02,4305.8,4305.7,10.78779292]
[1756864399539,0.02,4305.8,4305.7,11.10119292]
[1756864399847,0.02,4305.8,4305.7,12.04529292]
[1756864400022,0.02,4305.8,4305.7,14.58689292]
[1756864400341,0.02,4305.8,4305.7,15.04529292]
[1756864401322,0.021,4305.8,4305.7,15.04529292]
[1756864401914,0.021,4305.8,4305.7,14.10119292]
[1756864402148,0.021,4305.8,4305.7,13.78779292]
[1756864402344,0.12,4305.8,4305.7,9.86179292]
[1756864402552,0.12,4305.8,4305.7,11.87104952]
[1756864402737,0.12,4305.8,4305.7,12.66304952]
[1756864402939,0.12,4305.8,4305.7,12.00784952]
[1756864403120,0.021,4305.8,4305.7,11.56534952]
[1756864403320,0.021,4305.8,4305.7,11.87874952]
[1756864403526,0.021,4305.8,4305.7,12.67074952]
[1756864403723,0.021,4305.8,4305.7,13.49884952]
[1756864403935,0.021,4305.8,4305.7,13.61484952]
[1756864407038,0.021,4305.8,4305.7,13.61426341]
[1756864408552,0.02,4305.9,4305.8,6.11444879]
[1756864408757,0.02,4305.9,4305.8,7.27530948]
[1756864408954,0.02,4305.9,4305.8,7.58870948]
[1756864410755,0.02,4305.9,4305.8,10.25120948]
[1756864410967,0.02,4305.9,4305.8,6.33120948]
[1756864411143,0.02,4305.9,4305.8,10.25120948]
[1756864411640,0.119,4305.9,4305.8,10.25120948]
[1756864411861,0.119,4305.9,4305.8,10.25020948]
[1756864412339,0.119,4305.9,4305.8,6.33120948]
[1756864412540,0.119,4305.9,4305.8,10.25020948]
[1756864414045,0.02,4305.9,4305.8,10.25020948]
[1756864414439,0.02,4305.9,4305.8,11.45880948]
[1756864414849,0.02,4305.9,4305.8,10.54370948]
[1756864415757,0.02,4305.9,4305.8,11.45880948]
[1756864416451,0.02,4305.9,4305.8,10.54470948]
[1756864416650,0.02,4305.9,4305.8,11.45980948]
[1756864417253,1e-08,4305.9,4305.8,11.45980948]
[1756864417641,0.04,4306.8,4306.7,3.11396345]
[1756864417841,1e-08,4306.9,4306.8,6.11390953]
[1756864418062,1e-08,4306.9,4306.8,7.53927022]
[1756864419487,1e-08,4306.9,4306.8,23.98178632]
[1756864419781,1e-08,4306.9,4306.8,7.65527022]
[1756864419936,1e-08,4306.9,4306.8,11.59127022]
[1756864420133,1e-08,4306.9,4306.8,12.71172113]
[1756864421261,1e-08,4307.9,4307.8,0.792]
[1756864421577,1e-08,4307.9,4307.8,12.04034492]
[1756864421740,1e-08,4307.9,4307.8,13.22573122]
[1756864422468,1e-08,4307.9,4307.8,8.37563122]
[1756864422766,1e-08,4307.9,4307.8,8.39352757]
[1756864423076,1e-08,4307.9,4307.8,12.32752757]
[1756864423451,1e-08,4307.9,4307.8,8.39352757]
[1756864423760,1e-08,4307.9,4307.8,12.32652757]
[1756864424369,1e-08,4307.9,4307.8,23.42652757]
[1756864424686,1e-08,4307.9,4307.8,19.49352757]
[1756864424687,0.10150001,4307.9,4307.8,19.49352757]
[1756864424867,0.10150001,4307.9,4307.8,23.42752757]
[1756864425543,0.10150001,4307.9,4307.8,19.49352757]
[1756864425742,0.10150001,4307.9,4307.8,23.42652757]
[1756864425942,1e-08,4307.9,4307.8,23.42652757]
[1756864426981,0.10400001,4307.9,4307.8,23.42552757]
[1756864427163,0.10400001,4307.9,4307.8,23.42452757]
[1756864427340,0.10400001,4307.9,4307.8,19.49352757]
[1756864427540,0.10400001,4307.9,4307.8,23.42452757]
[1756864428260,1e-08,4307.9,4307.8,23.42452757]
[1756864428465,1e-08,4307.9,4307.8,23.42352757]
[1756864428946,1e-08,4307.9,4307.8,24.63212757]
[1756864430162,0.09900001,4307.9,4307.8,23.42252757]
[1756864430559,1e-08,4307.9,4307.8,23.42252757]
[1756864430761,0.10150001,4307.9,4307.8,19.49352757]
[1756864431082,0.10150001,4307.9,4307.8,23.42252757]
[1756864431382,1e-08,4307.9,4307.8,23.42252757]
[1756864431565,1e-08,4307.9,4307.8,24.51512757]
[1756864431875,1e-08,4307.9,4307.8,23.31652757]
[1756864432077,1e-08,4307.9,4307.8,19.37752757]
[1756864432302,1e-08,4307.9,4307.8,23.31652757]
[1756864432786,1e-08,4307.9,4307.8,19.67102757]
[1756864432938,1e-08,4307.9,4307.8,23.61002757]
[1756864433143,0.09900001,4307.9,4307.8,23.00513122]
[1756864433590,0.09900001,4307.9,4307.8,19.06613122]
[1756864433745,0.09900001,4307.9,4307.8,23.00513122]
[1756864433950,1e-08,4307.9,4307.8,23.29863122]
[1756864434676,1e-08,4307.9,4307.8,23.00513122]
[1756864434846,0.09900001,4307.9,4307.8,23.00513122]
[1756864435357,1e-08,4307.9,4307.8,23.00913122]
[1756864435573,1e-08,4307.9,4307.8,23.30263122]
[1756864435868,0.09900001,4307.9,4307.8,23.01113122]
[1756864436259,0.10000001,4307.9,4307.8,23.01113122]
[1756864436479,0.71270001,4307.9,4307.8,1.85676069]
[1756864436645,0.71270001,4307.9,4307.8,8.11913122]
[1756864436978,0.71270001,4307.9,4307.8,11.11913122]
[1756864437379,0.71270001,4307.9,4307.8,8.79776069]
[1756864437574,0.71270001,4307.9,4307.8,1.85676069]
[1756864437778,0.71270001,4307.9,4307.8,5.79676069]
[1756864437992,0.66270001,4307.9,4307.8,5.79612425]
[1756864439166,0.66270001,4307.9,4307.8,1.87612425]
[1756864439593,0.96109104,4307.9,4307.8,5.81512425]
[1756864440479,2.98401666,4307.9,4307.8,0.24012425]
[1756864440669,2.98401666,4307.9,4307.8,0.024]
[1756864441213,0.61520001,4307.9,4307.8,0.24045069]
[1756864441410,0.35200001,4307.9,4307.8,0.24045069]
[1756864441571,0.61520001,4307.9,4307.8,0.24045069]
[1756864442669,0.05000001,4307.9,4307.8,0.24045069]
[1756864444513,0.001,4307.9,4307.8,8.02977999]
[1756864444807,0.001,4307.9,4307.8,8.12256629]
[1756864445115,0.001,4307.9,4307.8,19.22256629]
[1756864449287,0.001,4307.9,4307.8,23.15956629]
[1756864451122,0.001,4307.9,4307.8,23.13956629]
[1756864451498,0.001,4307.9,4307.8,23.13756629]
[1756864453527,0.001,4307.9,4307.8,17.48746629]
[1756864453690,0.1,4307.9,4307.8,6.37437053]
[1756864453886,0.1,4307.9,4307.8,9.59114178]
[1756864454111,0.001,4307.9,4307.8,9.59114178]
[1756864454346,0.001,4307.9,4307.8,10.68324178]
[1756864454495,0.001,4307.9,4307.8,11.12544178]
[1756864454927,0.001,4307.9,4307.8,11.60634178]
[1756864455919,0.1,4307.9,4307.8,10.38314178]
[1756864456137,0.1,4307.9,4307.8,6.45014178]
[1756864456427,0.1,4307.9,4307.8,10.38414178]
[1756864456629,0.102,4307.9,4307.8,10.38414178]
[1756864458223,0.102,4307.9,4307.8,6.45014178]
[1756864458542,0.102,4307.9,4307.8,10.38414178]
[1756864458906,0.001,4307.9,4307.8,10.38414178]
[1756864459448,0.1,4307.9,4307.8,10.38414178]
[1756864459858,0.6632,4307.9,4307.8,0.33677125]
[1756864460013,0.77044603,4307.9,4307.8,6.58914178]
[1756864460214,0.1,4307.9,4307.8,6.58914178]
[1756864462258,0.001,4307.9,4307.8,11.60434178]
[1756864462412,0.001,4307.9,4307.8,10.38114178]
[1756864462612,0.1,4307.9,4307.8,9.59014178]
[1756864463124,0.1,4307.9,4307.8,4.26877125]
[1756864463341,0.6632,4307.9,4307.8,4.26877125]
[1756864464222,0.6632,4307.9,4307.8,4.26904194]
[1756864464421,0.4,4307.9,4307.8,4.26904194]
[1756864464625,0.1,4307.9,4307.8,6.59041247]
[1756864464810,0.1,4307.9,4307.8,4.26904194]
[1756864465013,0.1,4307.9,4307.8,6.59041247]
[1756864465223,0.001,4307.9,4307.8,6.59041247]
[1756864465752,0.001,4307.9,4307.8,8.60561247]
[1756864466051,0.001,4307.9,4307.8,9.69832087]
[1756864466647,0.001,4307.9,4307.8,12.69832087]
[1756864467318,0.001,4307.9,4307.8,23.79832087]
[1756864469039,0.1,4307.9,4307.8,22.57312087]
[1756864469245,0.001,4307.9,4307.8,21.78051247]
[1756864469649,0.001,4307.9,4307.8,10.68051247]
[1756864471335,0.001,4307.9,4307.8,11.60861247]
[1756864474074,0.001,4307.9,4307.8,10.38041247]
[1756864474574,0.1,4307.9,4307.8,7.26304194]
[1756864475071,0.1,4307.9,4307.8,9.58441247]
[1756864475755,0.001,4307.9,4307.8,9.58441247]
[1756864476168,0.001,4307.9,4307.8,9.89751247]
[1756864476895,0.001,4307.9,4307.8,11.50161247]
[1756864477099,0.001,4307.9,4307.8,11.61761247]
[1756864477249,0.001,4307.9,4307.8,10.68951247]
[1756864477600,0.001,4307.9,4307.8,11.61761247]
[1756864478759,0.001,4307.9,4307.8,10.37841247]
[1756864479174,0.001,4307.9,4307.8,10.69151247]
[1756864479357,0.001,4307.9,4307.8,11.61961247]
[1756864479765,0.001,4307.9,4307.8,10.69151247]
[1756864479970,0.001,4307.9,4307.8,11.61961247]
[1756864480492,0.001,4307.9,4307.8,22.71961247]
[1756864481787,0.1,4307.9,4307.8,21.47841247]
[1756864482192,0.1,4307.9,4307.8,5.65841247]
[1756864482392,0.1,4307.9,4307.8,9.58541247]
[1756864482553,0.1,4307.9,4307.8,0.33704194]
[1756864482755,0.1,4307.9,4307.8,4.26504194]
[1756864484758,0.1,4307.9,4307.8,6.58641247]
[1756864484963,0.001,4307.9,4307.8,12.27825372]
[1756864486165,0.001,4307.9,4307.8,23.37825372]
[1756864488864,0.001,4307.9,4307.8,22.92535372]
[1756864489190,0.001,4307.9,4307.8,18.99735372]